bitfinex-derivatives/quotes_BTCF0:USTF0_20250127
["timestamp","ask_amount","ask_price","bid_price","bid_amount"]
[1738004272041,0.3608,99136.0,99132.0,0.201841]
[1738004272251,0.3608,99136.0,99135.0,0.201835]
[1738004273246,0.201836,99135.0,99130.0,0.201845]
[1738004273442,0.201828,99139.0,99124.0,1.50052]
[1738004273647,0.00015129,99140.0,99135.0,0.201834]
[1738004274049,0.201828,99139.0,99135.0,0.201834]
[1738004274244,0.201828,99139.0,99130.0,0.201845]
[1738004274450,0.201828,99139.0,99124.0,1.50056]
[1738004274451,0.201831,99138.0,99124.0,1.50056]
[1738004274651,0.201831,99138.0,99132.0,0.201841]
[1738004274850,0.201831,99137.0,99132.0,0.201841]
[1738004275356,0.00015129,99140.0,99137.0,0.20183]
[1738004275660,0.00015129,99140.0,99128.0,0.3608]
[1738004275661,0.00015129,99140.0,99139.0,0.201827]
[1738004276353,0.00015129,99140.0,99139.0,1.701827]
[1738004278273,0.00115129,99140.0,99139.0,1.701827]
[1738004278456,0.00115129,99140.0,99139.0,0.201827]
[1738004279459,0.08975063,99156.0,99138.0,0.3608]
[1738004279851,0.08975063,99156.0,99154.0,0.201795]
[1738004280057,0.29154463,99156.0,99149.0,0.201807]
[1738004280259,0.00299,99157.0,99149.0,0.201807]
[1738004280559,0.00299,99157.0,99143.0,0.00015129]
[1738004280763,0.00299,99157.0,99144.0,0.201817]
[1738004280964,0.201817,99144.0,99143.0,0.00015129]
[1738004281259,0.201813,99147.0,99143.0,0.00015129]
[1738004281653,0.3608,99154.0,99143.0,0.00015129]
[1738004282065,0.201813,99146.0,99143.0,0.20196929]
[1738004282259,0.201816,99145.0,99143.0,0.00015129]
[1738004282460,0.201817,99144.0,99143.0,0.00015129]
[1738004284864,0.204817,99144.0,99143.0,0.00015129]
[1738004285366,0.201848,99129.0,99128.0,0.18070871]
[1738004285553,0.562648,99129.0,99128.0,0.18070871]
[1738004286069,0.562648,99129.0,99128.0,0.38255871]
[1738004286869,0.201848,99129.0,99128.0,0.38255871]
[1738004287456,0.201848,99129.0,99128.0,0.18070871]
[1738004287664,0.201848,99129.0,99128.0,0.18170871]
[1738004287865,0.54598001,99136.0,99128.0,0.18170871]
[1738004288059,0.5451,99136.0,99128.0,0.18170871]
[1738004288267,0.201842,99132.0,99128.0,0.18170871]
[1738004288571,0.201842,99132.0,99130.0,0.201845]
[1738004288771,0.201846,99130.0,99128.0,0.001]
[1738004288974,0.201848,99129.0,99128.0,0.001]
[1738004289169,0.08975063,99131.0,99130.0,0.201846]
[1738004291865,0.08975063,99131.0,99130.0,0.001]
[1738004292054,0.29159463,99131.0,99130.0,0.001]
[1738004292662,0.201866,99120.0,99119.0,0.00015129]
[1738004292977,0.562666,99120.0,99119.0,0.00015129]
[1738004294571,0.562666,99120.0,99119.0,0.00115129]
[1738004295568,0.201884,99111.0,99088.0,2.06016101]
[1738004295766,0.562684,99111.0,99088.0,1.85875101]
[1738004295970,0.562684,99111.0,99095.0,0.3608]
[1738004296275,0.0907,99119.0,99118.0,0.20187]
[1738004296476,0.01034474,99120.0,99113.0,0.201879]
[1738004296658,0.201876,99115.0,99114.0,0.201878]
[1738004298077,0.0936,99128.0,99114.0,0.201878]
[1738004298078,0.0936,99128.0,99114.0,1.5]
[1738004298279,0.20177,99168.0,99130.0,0.201846]
[1738004298481,0.02110294,99145.0,99144.0,0.923417]
[1738004298976,0.02110294,99145.0,99144.0,2.423417]
[1738004299669,0.02310294,99145.0,99144.0,2.423417]
[1738004300081,0.002,99145.0,99144.0,2.423417]
[1738004300374,0.002,99145.0,99144.0,2.07268458]
[1738004300761,0.002,99145.0,99144.0,2.07368458]
[1738004302270,0.002,99145.0,99144.0,2.063617]
[1738004303285,0.203815,99145.0,99144.0,0.001]
[1738004303774,0.002,99145.0,99144.0,0.001]
[1738004304177,0.002,99145.0,99144.0,0.202817]
[1738004306288,0.203815,99145.0,99144.0,0.001]
[1738004306780,0.002,99145.0,99144.0,0.001]
[1738004307184,0.002,99145.0,99144.0,0.202817]
[1738004307480,0.203815,99145.0,99144.0,0.001]
[1738004307876,0.002,99145.0,99144.0,0.001]
[1738004308371,0.203815,99145.0,99144.0,0.001]
[1738004312291,0.564615,99145.0,99144.0,0.001]
[1738004312477,0.3628,99145.0,99135.0,0.00015129]
[1738004312677,0.562633,99136.0,99135.0,0.00015129]
[1738004313688,0.562633,99136.0,99135.0,0.00115129]
[1738004313894,0.562633,99136.0,99135.0,0.001]
[1738004314687,0.862633,99136.0,99135.0,0.001]
[1738004315272,0.57267541,99136.0,99135.0,0.001]
[1738004315474,0.3608,99145.0,99135.0,0.002]
[1738004315675,0.20181,99148.0,99136.0,0.201832]
[1738004315888,0.3608,99151.0,99135.0,0.002]
[1738004316192,0.3608,99151.0,99143.0,0.201818]
[1738004316193,0.09774411,99150.0,99143.0,0.201818]
[1738004316692,0.201817,99144.0,99143.0,0.201818]
[1738004317891,0.201829,99138.0,99137.0,0.20183]
[1738004318086,0.002,99145.0,99129.0,1.50052]
[1738004318087,0.002,99145.0,99141.0,0.201822]
[1738004318289,0.201846,99130.0,99129.0,1.50052]
[1738004318483,0.201852,99127.0,99126.0,0.36095129]
[1738004319987,0.201852,99127.0,99126.0,0.36195129]
[1738004320185,0.201852,99127.0,99126.0,0.00115129]
[1738004320395,0.201852,99127.0,99126.0,0.00215129]
[1738004320887,0.201813,99146.0,99140.0,0.201824]
[1738004321074,0.3608,99151.0,99130.0,0.14670297]
[1738004321279,0.201819,99143.0,99137.0,0.201831]
[1738004321879,0.201834,99136.0,99133.0,0.3608]
[1738004322276,0.003,99146.0,99133.0,0.3608]
[1738004322483,0.201837,99135.0,99133.0,0.3608]
[1738004322792,0.002,99143.0,99133.0,0.3608]
[1738004323178,0.201814,99146.0,99134.0,0.0892]
[1738004323594,0.201814,99146.0,99141.0,0.201822]
[1738004323778,0.57344038,99151.0,99134.0,0.0892]
[1738004323981,0.3608,99151.0,99150.0,0.201805]
[1738004325094,0.00015129,99154.0,99152.0,0.2018]
[1738004325293,0.00015129,99154.0,99141.0,1.95432]
[1738004325490,0.00015129,99154.0,99153.0,0.201799]
[1738004326683,0.00315129,99154.0,99153.0,0.202799]
[1738004328098,0.00315129,99154.0,99153.0,0.001]
[1738004328598,0.00315129,99154.0,99153.0,0.202799]
[1738004328800,0.00315129,99154.0,99153.0,0.001]
[1738004329792,0.56674829,99154.0,99153.0,0.001]
[1738004331189,0.57691497,99154.0,99153.0,0.001]
[1738004334899,0.36495129,99154.0,99153.0,0.001]
[1738004335094,0.36495129,99154.0,99153.0,0.202799]
[1738004335290,0.00415129,99154.0,99153.0,0.202799]
[1738004335790,0.00415129,99154.0,99153.0,1.702799]
[1738004337490,0.00415129,99154.0,99153.0,0.202799]
[1738004339704,0.00415129,99154.0,99153.0,1.71274156]
[1738004341996,0.00415129,99154.0,99153.0,1.702799]
[1738004343709,0.00415129,99154.0,99153.0,2.002799]
[1738004344204,2.9e-07,99163.0,99153.0,2.3281]
[1738004344402,0.1,99200.0,99186.0,0.201732]
[1738004344598,0.1,99200.0,99186.0,0.3608]
[1738004344794,0.1,99200.0,99190.0,0.201724]
[1738004344992,0.1,99200.0,99190.0,1.701724]
[1738004345300,1e-06,99202.0,99196.0,0.3608]
[1738004345501,0.20024184,99208.0,99207.0,0.201689]
[1738004345830,0.20024184,99208.0,99207.0,0.562489]
[1738004346101,0.20024184,99208.0,99207.0,2.062489]
[1738004346299,0.00314121,99217.0,99207.0,0.3608]
[1738004346507,0.3608,99211.0,99196.0,0.001]
[1738004346702,0.562509,99197.0,99196.0,0.001]
[1738004346908,0.3608,99197.0,99163.0,0.0879]
[1738004347111,0.562534,99185.0,99163.0,0.0879]
[1738004347311,0.562534,99185.0,99171.0,0.201761]
[1738004347496,0.562534,99185.0,99165.0,0.2119884]
[1738004347809,0.562534,99185.0,99165.0,0.201774]
[1738004348004,0.562534,99185.0,99184.0,0.00115129]
[1738004348509,0.57272311,99185.0,99184.0,0.00115129]
[1738004348699,0.37098911,99185.0,99184.0,0.001]
[1738004349005,0.20177,99167.0,99158.0,0.3608]
[1738004349198,0.56257,99167.0,99158.0,0.3608]
[1738004351599,0.56257,99167.0,99166.0,0.00251232]
[1738004351810,0.56257,99167.0,99166.0,0.00351232]
[1738004352710,0.57253552,99167.0,99166.0,0.00351232]
[1738004355005,0.57253552,99167.0,99166.0,0.00251232]
[1738004355517,0.57253552,99167.0,99166.0,0.00151232]
[1738004355813,0.37076552,99167.0,99157.0,0.00015121]
[1738004356006,0.562589,99158.0,99157.0,0.00015121]
[1738004357018,0.562589,99158.0,99157.0,0.00115121]
[1738004357913,0.562589,99158.0,99157.0,0.00215121]
[1738004358618,0.3608,99158.0,99157.0,0.00215121]
[1738004358814,0.201779,99163.0,99160.0,0.201784]
[1738004359209,0.36168001,99167.0,99160.0,0.201784]
[1738004359418,0.201781,99162.0,99161.0,1.5]
[1738004360214,0.201781,99162.0,99160.0,0.201784]
[1738004360415,0.201783,99161.0,99157.0,0.00215121]
[1738004360720,0.201783,99161.0,99158.0,1.701787]
[1738004361220,0.201783,99161.0,99160.0,0.001]
[1738004361608,0.201783,99161.0,99158.0,1.702307]
[1738004361827,0.201783,99161.0,99158.0,1.701787]
[1738004362023,0.201772,99167.0,99158.0,1.5]
[1738004362324,0.201776,99165.0,99158.0,1.5921]
[1738004362522,0.201776,99165.0,99158.0,1.5931]
[1738004362915,0.201776,99165.0,99160.0,0.201783]
[1738004363929,0.00015121,99172.0,99158.0,1.5947]
[1738004364123,0.00015121,99172.0,99160.0,0.14655161]
[1738004364425,0.44778001,99179.0,99160.0,0.14655161]
[1738004364426,3.122e-05,99179.0,99178.0,0.201748]
[1738004364615,0.3608,99202.0,99201.0,0.201701]
[1738004364810,0.1759,99206.0,99190.0,0.14655161]
[1738004365015,0.3608,99214.0,99210.0,0.201681]
[1738004365314,0.3608,99214.0,99212.0,0.201677]
[1738004365514,0.17725121,99222.0,99216.0,0.201671]
[1738004365819,0.08555121,99222.0,99216.0,0.201671]
[1738004366015,0.08555121,99222.0,99216.0,1.701671]
[1738004366830,0.201676,99214.0,99206.0,0.3608]
[1738004367217,0.08555121,99222.0,99206.0,0.3608]
[1738004367418,0.08555121,99222.0,99216.0,0.201671]
[1738004367615,0.00999,99217.0,99216.0,0.202671]
[1738004368119,0.00299,99217.0,99216.0,0.201671]
[1738004368731,0.00999,99217.0,99216.0,0.001]
[1738004369022,0.01199,99217.0,99216.0,0.001]
[1738004369222,0.213659,99217.0,99216.0,0.001]
[1738004370423,0.574459,99217.0,99216.0,0.001]
[1738004372424,0.37279,99217.0,99216.0,0.001]
[1738004372620,0.37279,99217.0,99216.0,0.202671]
[1738004373124,0.37279,99217.0,99216.0,0.001]
[1738004373331,0.01199,99217.0,99216.0,0.202671]
[1738004373539,0.01199,99217.0,99216.0,0.001]
[1738004373832,0.01199,99217.0,99216.0,0.202671]
[1738004374218,0.01199,99217.0,99216.0,1.702671]
[1738004374526,0.01215754,99217.0,99216.0,1.702671]
[1738004374731,0.00315754,99217.0,99216.0,1.701671]
[1738004374928,0.01115754,99217.0,99216.0,1.71284001]
[1738004375321,0.01115754,99217.0,99216.0,1.80164001]
[1738004376715,0.01115754,99217.0,99216.0,1.88934001]
[1738004376920,0.01115754,99217.0,99216.0,0.38934001]
[1738004377115,0.00315754,99217.0,99216.0,0.01016901]
[1738004377318,0.00615754,99217.0,99206.0,0.3608]
[1738004377621,0.00615754,99217.0,99206.0,0.37068137]
[1738004377825,0.00315754,99217.0,99213.0,0.201676]
[1738004378021,0.00315754,99217.0,99216.0,0.001]
[1738004378834,0.20482654,99217.0,99216.0,0.001]
[1738004379128,0.20482654,99217.0,99216.0,0.18148749]
[1738004379729,0.18634684,99217.0,99216.0,0.18148749]
[1738004379934,0.18634684,99217.0,99216.0,0.18048749]
[1738004380425,0.19669818,99217.0,99216.0,0.18048749]
[1738004380732,0.19669818,99217.0,99216.0,0.18148749]
[1738004381338,0.19669818,99217.0,99216.0,0.001]
[1738004382431,0.01035134,99217.0,99207.0,0.201689]
[1738004382627,0.201686,99209.0,99207.0,0.201689]
[1738004382829,0.3608,99214.0,99207.0,0.201689]
[1738004383028,0.3608,99214.0,99202.0,1.50015121]
[1738004383343,0.0859,99213.0,99207.0,0.201688]
[1738004383536,0.201687,99208.0,99207.0,0.201688]
[1738004383939,0.201679,99212.0,99202.0,0.00067121]
[1738004384129,0.201693,99206.0,99202.0,0.00015121]
[1738004384828,0.0859,99213.0,99202.0,0.00015121]
[1738004385033,0.201697,99203.0,99202.0,0.00015121]
[1738004385246,0.201697,99203.0,99201.0,0.00052]
[1738004385247,0.201721,99191.0,99190.0,0.18048749]
[1738004385431,0.562521,99191.0,99190.0,0.18048749]
[1738004385623,0.3608,99191.0,99184.0,0.14279729]
[1738004385828,0.201734,99185.0,99184.0,0.14279729]
[1738004387130,0.57343909,99191.0,99184.0,0.14379729]
[1738004387327,0.57259909,99191.0,99190.0,0.201724]
[1738004388231,0.3608,99191.0,99190.0,0.201724]
[1738004388630,0.201719,99193.0,99184.0,0.01099624]
[1738004388826,0.201719,99193.0,99192.0,0.201719]
[1738004391040,0.201719,99193.0,99192.0,0.202719]
[1738004391224,0.201719,99193.0,99192.0,0.001]
[1738004392444,0.201719,99193.0,99192.0,1.501]
[1738004393151,0.00015121,99194.0,99193.0,0.201717]
[1738004394342,0.00015121,99194.0,99193.0,0.21301515]
[1738004395135,0.00015121,99194.0,99193.0,0.57381515]
[1738004395331,0.4525,99216.0,99214.0,0.201674]
[1738004395332,0.3608,99216.0,99214.0,0.201674]
[1738004395741,0.3608,99216.0,99206.0,0.50715628]
[1738004395742,0.3608,99216.0,99193.0,0.37209815]
[1738004395946,0.201679,99212.0,99206.0,0.201691]
[1738004396146,0.01033455,99225.0,99211.0,0.3608]
[1738004396343,0.56324501,99229.0,99211.0,0.3608]
[1738004396543,0.20179721,99228.0,99219.0,0.201664]
[1738004396729,0.20179721,99228.0,99220.0,0.201662]
[1738004397133,0.00015121,99228.0,99220.0,0.201662]
[1738004397336,0.005,99225.0,99220.0,0.201661]
[1738004397544,0.005,99225.0,99211.0,0.3608]
[1738004397729,0.201653,99225.0,99217.0,0.201668]
[1738004397931,0.00815121,99228.0,99220.0,0.001]
[1738004398361,0.201652,99225.0,99220.0,0.001]
[1738004398547,0.00815121,99228.0,99220.0,0.001]
[1738004398740,0.00815121,99228.0,99226.0,0.20165]
[1738004399043,0.01115121,99228.0,99223.0,0.201655]
[1738004399435,0.01115121,99228.0,99220.0,0.001]
[1738004399636,0.008,99225.0,99220.0,0.001]
[1738004400135,0.00215121,99228.0,99220.0,0.3608]
[1738004400337,0.00815121,99228.0,99227.0,0.201648]
[1738004400744,0.00715121,99228.0,99227.0,0.201648]
[1738004400950,0.00115121,99228.0,99227.0,0.201648]
[1738004401455,0.00299,99232.0,99227.0,0.201648]
[1738004401745,0.0855,99275.0,99247.0,0.050401]
[1738004401933,0.0855,99275.0,99261.0,0.562379]
[1738004402338,0.3608,99288.0,99261.0,0.562379]
[1738004402548,0.201528,99287.0,99261.0,2.062379]
[1738004402751,9.999e-05,99271.0,99261.0,2.062379]
[1738004403139,9.999e-05,99271.0,99270.0,0.201561]
[1738004403353,9.999e-05,99271.0,99270.0,0.562361]
[1738004403649,9.999e-05,99271.0,99261.0,0.09859297]
[1738004403850,9.999e-05,99271.0,99262.0,1.5]
[1738004404255,9.999e-05,99271.0,99269.0,0.201563]
[1738004406650,0.19939665,99280.0,99265.0,0.0907]
[1738004406949,0.20939049,99280.0,99265.0,0.0907]
[1738004407149,0.20939049,99280.0,99266.0,0.201568]
[1738004407347,0.20939049,99280.0,99271.0,0.201558]
[1738004408246,0.001,99280.0,99265.0,0.0907]
[1738004408456,0.001,99280.0,99278.0,0.201544]
[1738004409542,0.1,99300.0,99275.0,0.3608]
[1738004409757,0.1,99300.0,99291.0,0.201518]
[1738004411156,0.3608,99297.0,99282.0,0.00015113]
[1738004411362,0.201507,99297.0,99287.0,0.201525]
[1738004411656,0.201523,99289.0,99282.0,0.00015113]
[1738004412345,0.3608,99296.0,99282.0,0.00015113]
[1738004412545,0.204507,99292.0,99291.0,0.001]
[1738004413047,0.00299,99292.0,99291.0,0.001]
[1738004413450,0.3608,99305.0,99290.0,0.201519]
[1738004413647,0.201501,99300.0,99290.0,0.201519]
[1738004413855,0.3608,99305.0,99291.0,1.501]
[1738004414052,0.3608,99305.0,99302.0,0.201496]
[1738004414555,0.01000111,99309.0,99303.0,0.201493]
[1738004414741,0.3608,99305.0,99293.0,1.50052]
[1738004414943,0.3608,99305.0,99302.0,0.201495]
[1738004415149,0.3608,99305.0,99293.0,1.5006]
[1738004415347,0.3608,99305.0,99293.0,1.5]
[1738004415537,0.3608,99305.0,99304.0,0.201492]
[1738004415746,0.36160001,99318.0,99306.0,0.201488]
[1738004415941,0.00080001,99318.0,99306.0,0.201488]
[1738004416147,0.09420001,99319.0,99306.0,0.201488]
[1738004416354,0.0934,99319.0,99306.0,0.201488]
[1738004417254,0.00299,99322.0,99306.0,0.21149214]
[1738004417450,0.00299,99322.0,99321.0,0.201457]
[1738004417647,0.00299,99322.0,99321.0,0.562257]
[1738004417953,0.36379,99322.0,99321.0,1.5]
[1738004418147,0.36379,99322.0,99312.0,0.00015105]
[1738004418352,0.201463,99319.0,99312.0,0.00015105]
[1738004418549,0.3608,99313.0,99312.0,0.00015105]
[1738004418852,0.3608,99313.0,99306.0,0.001]
[1738004418853,0.201484,99308.0,99306.0,0.001]
[1738004419055,0.411169,99312.0,99282.0,0.3608]
[1738004419250,0.201506,99297.0,99288.0,0.201524]
[1738004419552,0.201502,99299.0,99292.0,0.201516]
[1738004420143,0.3608,99300.0,99286.0,0.00015105]
[1738004420454,0.00015079,99305.0,99303.0,0.201493]
[1738004422355,0.00015079,99305.0,99304.0,1.5]
[1738004423448,0.00015079,99305.0,99304.0,1.9482]
[1738004423653,0.0886,99332.0,99321.0,0.201457]
[1738004424752,0.00499,99322.0,99321.0,0.201457]
[1738004425953,0.00499,99322.0,99321.0,0.562257]
[1738004426858,0.00499,99322.0,99321.0,0.57218988]
[1738004427046,0.00499,99322.0,99321.0,0.87236197]
[1738004427450,0.201419,99341.0,99331.0,0.201437]
[1738004427754,0.0815,99344.0,99336.0,0.201427]
[1738004428254,0.36160001,99348.0,99336.0,0.201427]
[1738004428554,0.00399,99337.0,99336.0,0.21152953]
[1738004428757,0.00399,99337.0,99336.0,1.71152953]
[1738004429556,0.00499,99337.0,99336.0,1.71152953]
[1738004429764,0.01199,99337.0,99336.0,1.71252953]
[1738004429957,0.01199,99337.0,99336.0,0.202427]
[1738004430156,0.01199,99337.0,99336.0,0.001]
[1738004430352,0.00499,99337.0,99336.0,0.001]
[1738004430554,0.206415,99337.0,99336.0,0.001]
[1738004430865,0.00499,99337.0,99336.0,0.001]
[1738004431064,0.00499,99337.0,99336.0,0.202427]
[1738004431250,0.00299,99337.0,99336.0,0.202427]
[1738004431563,0.00299,99337.0,99336.0,0.21334262]
[1738004432060,0.01007613,99363.0,99336.0,0.21334262]
[1738004432061,0.201376,99362.0,99351.0,0.201397]
[1738004432354,0.3608,99364.0,99351.0,0.201397]
[1738004432558,0.3608,99364.0,99351.0,1.701397]
[1738004432768,0.00299,99367.0,99351.0,1.5]
[1738004432950,0.00299,99367.0,99364.0,0.3608]
[1738004433151,0.00299,99367.0,99351.0,1.50997013]
[1738004433346,0.00299,99367.0,99355.0,0.201387]
[1738004433347,0.201375,99362.0,99355.0,0.201387]
[1738004433546,0.284177,99361.0,99351.0,1.701396]
[1738004433754,0.201381,99359.0,99351.0,0.201396]
[1738004433954,0.0828,99361.0,99350.0,0.3608]
[1738004434154,0.0828,99361.0,99355.0,0.201388]
[1738004434563,0.0828,99361.0,99357.0,0.201384]
[1738004434951,0.0828,99361.0,99350.0,0.3608]
[1738004435262,0.3608,99366.0,99365.0,0.201368]
[1738004436059,0.00399,99367.0,99366.0,0.201366]
[1738004436252,0.00299,99367.0,99366.0,0.562166]
[1738004436647,0.00299,99382.0,99381.0,0.201336]
[1738004437347,0.00299,99382.0,99375.0,0.3608]
[1738004437552,0.00299,99382.0,99372.0,0.14633122]
[1738004437553,0.3608,99377.0,99372.0,0.00015097]
[1738004437752,0.00299,99382.0,99372.0,0.00015097]
[1738004437753,0.20134,99379.0,99372.0,0.00015097]
[1738004438054,0.20134,99379.0,99372.0,0.20150497]
[1738004438461,0.201352,99373.0,99372.0,0.00015097]
[1738004439059,0.3608,99377.0,99356.0,0.42199006]
[1738004439359,0.3608,99366.0,99356.0,0.42199006]
[1738004439761,0.3608,99366.0,99360.0,0.201378]
[1738004439964,0.201369,99365.0,99360.0,0.201378]
[1738004440859,0.201371,99364.0,99360.0,0.201378]
[1738004441259,0.37113946,99366.0,99357.0,0.001]
[1738004441569,0.37113946,99366.0,99353.0,0.00015097]
[1738004441570,0.201391,99354.0,99353.0,0.00015097]
[1738004441864,0.201407,99346.0,99338.0,0.41898328]
[1738004442163,0.201402,99349.0,99340.0,0.201419]
[1738004442362,0.4456,99357.0,99356.0,0.201387]
[1738004442560,0.01033946,99366.0,99365.0,0.201368]
[1738004442760,0.0001507,99372.0,99356.0,0.55732625]
[1738004442963,0.0001507,99372.0,99371.0,0.201356]
[1738004443262,0.0001507,99372.0,99371.0,1.701356]
[1738004443862,0.3608,99396.0,99371.0,1.5]
[1738004444162,0.3608,99396.0,99381.0,0.562136]
[1738004444463,0.3608,99396.0,99394.0,0.201308]
[1738004444659,0.3608,99396.0,99394.0,0.201309]
[1738004444966,0.1,99400.0,99396.0,0.201305]
[1738004445553,0.1,99400.0,99396.0,1.701305]
[1738004447062,0.00799,99397.0,99396.0,1.701305]
[1738004447455,0.00299,99412.0,99396.0,1.5]
[1738004447657,0.00299,99412.0,99410.0,0.201275]
[1738004448150,0.00299,99412.0,99411.0,0.3608]
[1738004448555,0.082,99441.0,99426.0,0.201245]
[1738004448760,0.082,99441.0,99426.0,2.062045]
[1738004449358,0.082,99441.0,99426.0,1.8608]
[1738004449567,0.201234,99432.0,99426.0,0.3608]
[1738004449764,0.201226,99436.0,99426.0,0.3608]
[1738004449968,0.201229,99434.0,99426.0,0.3608]
[1738004450268,0.00499,99427.0,99426.0,0.3608]
[1738004451263,0.00499,99427.0,99426.0,0.36057196]
[1738004451865,0.00399,99427.0,99426.0,0.36057196]
[1738004452471,0.00399,99427.0,99426.0,1.86057196]
[1738004452667,0.0855,99460.0,99441.0,0.201214]
[1738004452853,0.0855,99460.0,99441.0,0.562014]
[1738004453373,0.0839,99459.0,99441.0,0.562014]
[1738004453567,0.0839,99459.0,99441.0,2.062014]
[1738004454155,0.00299,99472.0,99456.0,0.201184]
[1738004454359,0.00299,99472.0,99456.0,0.561984]
[1738004454969,0.00299,99472.0,99471.0,0.201154]
[1738004455557,0.00299,99472.0,99471.0,1.701154]
[1738004455758,0.00299,99472.0,99471.0,0.201154]
[1738004455959,0.00299,99472.0,99466.0,0.201164]
[1738004456262,0.00299,99472.0,99465.0,0.3608]
[1738004456464,0.00499,99472.0,99465.0,0.3608]
[1738004457367,0.55816374,99474.0,99465.0,0.3608]
[1738004457671,0.201154,99471.0,99465.0,0.3608]
[1738004458271,0.005,99472.0,99465.0,0.3608]
[1738004458569,0.0819,99481.0,99465.0,0.3608]
[1738004458762,0.002,99472.0,99471.0,0.34733425]
[1738004458961,0.002,99472.0,99471.0,0.201154]
[1738004459666,0.005,99474.0,99473.0,0.20115]
[1738004459868,0.005,99474.0,99473.0,0.56195]
[1738004461668,0.1,99500.0,99487.0,0.201121]
[1738004461868,0.1,99500.0,99487.0,0.561921]
[1738004462970,0.00899,99488.0,99487.0,2.061921]
[1738004463283,0.1,99500.0,99499.0,0.201097]
[1738004463566,0.1,99500.0,99499.0,0.561897]
[1738004463771,0.00299,99563.0,99499.0,0.561897]
[1738004463772,0.0812,99539.0,99499.0,0.3608]
[1738004463958,0.3608,99544.0,99517.0,0.7216]
[1738004464159,0.3608,99544.0,99532.0,0.201031]
[1738004464368,0.082,99545.0,99532.0,0.201031]
[1738004464956,0.082,99545.0,99532.0,1.701031]
[1738004465162,0.3608,99552.0,99532.0,1.701031]
[1738004465464,0.3608,99552.0,99532.0,2.07197375]
[1738004466068,0.00399,99533.0,99532.0,2.07197375]
[1738004466272,0.00299,99563.0,99547.0,0.201]
[1738004466577,0.00299,99563.0,99562.0,0.20097]
[1738004466879,0.3608,99601.0,99577.0,0.20094]
[1738004467058,0.4441,99609.0,99577.0,0.49044]
[1738004467367,0.203867,99608.0,99590.0,0.3608]
[1738004467771,0.00299,99608.0,99591.0,0.200911]
[1738004467976,0.00299,99608.0,99592.0,0.3608]
[1738004468363,0.00299,99608.0,99592.0,0.6608]
[1738004468563,0.200842,99626.0,99607.0,0.200879]
[1738004468768,0.3608,99635.0,99610.0,0.14618025]
[1738004468966,0.20085,99622.0,99610.0,0.14618025]
[1738004469175,0.3608,99625.0,99611.0,0.3608]
[1738004469564,0.200877,99609.0,99607.0,0.00015065]
[1738004469768,0.200876,99609.0,99607.0,0.00015065]
[1738004470059,0.3608,99615.0,99607.0,0.00015065]
[1738004470267,0.083,99614.0,99607.0,0.00015065]
[1738004471174,0.083,99614.0,99569.0,0.23699998]
[1738004471175,0.200916,99589.0,99569.0,0.23699998]
[1738004471476,0.200954,99570.0,99569.0,0.29624997]
[1738004471869,0.200954,99570.0,99561.0,0.35549997]
[1738004471870,0.3608,99570.0,99561.0,0.35549997]
[1738004472173,0.56177,99562.0,99561.0,0.35549997]
[1738004472475,0.56177,99562.0,99561.0,0.22109997]
[1738004472677,0.200978,99558.0,99556.0,0.00015065]
[1738004472869,0.14618025,99556.0,99523.0,0.56231402]
[1738004473075,0.20102,99537.0,99523.0,0.56231402]
[1738004474175,0.3608,99538.0,99527.0,0.4756576]
[1738004474777,0.20102,99537.0,99527.0,0.4756576]
[1738004475362,0.20102,99537.0,99532.0,0.201029]
[1738004475567,0.20102,99537.0,99536.0,0.41574997]
[1738004476078,0.20102,99537.0,99536.0,0.001]
[1738004478172,0.50102,99537.0,99536.0,0.001]
[1738004478367,0.201039,99528.0,99527.0,0.00165764]
[1738004478568,0.201039,99528.0,99490.0,0.6721672]
[1738004478569,0.201085,99505.0,99489.0,0.00450781]
[1738004478777,0.561885,99505.0,99489.0,0.00450781]
[1738004478972,0.561885,99505.0,99490.0,1.5]
[1738004479569,0.561885,99505.0,99489.0,0.20562481]
[1738004479775,0.6608,99505.0,99495.0,0.00015072]
[1738004479971,0.201103,99496.0,99495.0,0.00015072]
[1738004480282,0.561903,99496.0,99495.0,0.00015072]
[1738004480677,0.6608,99496.0,99459.0,0.204177]
[1738004480875,0.201146,99475.0,99459.0,0.003]
[1738004481080,0.3608,99478.0,99459.0,0.003]
[1738004481081,0.201176,99460.0,99459.0,0.003]
[1738004481285,0.561976,99460.0,99459.0,0.003]
[1738004481582,0.861976,99460.0,99459.0,0.003]
[1738004481883,0.561976,99460.0,99459.0,0.003]
[1738004482274,0.561976,99460.0,99459.0,0.005]
[1738004482482,0.561976,99460.0,99459.0,0.006]
[1738004486577,0.3608,99460.0,99459.0,0.006]
[1738004486779,0.561961,99468.0,99459.0,1.506]
[1738004487081,0.3608,99468.0,99459.0,1.506]
[1738004487284,0.3608,99460.0,99459.0,1.506]
[1738004487475,0.3608,99460.0,99459.0,0.006]
[1738004487885,0.3608,99460.0,99459.0,0.207178]
[1738004488088,0.0001508,99469.0,99467.0,0.201162]
[1738004488591,0.2011,99498.0,99486.0,0.201123]
[1738004488783,0.2011,99498.0,99489.0,0.201116]
[1738004488982,0.3608,99502.0,99491.0,0.3608]
[1738004489186,0.45030051,99508.0,99491.0,0.3608]
[1738004489379,0.3608,99500.0,99487.0,0.201121]
[1738004489578,0.5850672,99500.0,99479.0,0.3608]
[1738004489782,0.201108,99494.0,99490.0,0.0001508]
[1738004490087,0.201113,99491.0,99490.0,0.0001508]
[1738004490283,0.56269601,99500.0,99490.0,0.0001508]
[1738004490484,0.201104,99496.0,99490.0,0.0001508]
[1738004490682,0.201106,99495.0,99490.0,0.0001508]